bitfinex/quotes_ETHUSD_20230113
["timestamp","ask_amount","ask_price","bid_price","bid_amount"]
[1673572085553,0.099,1407.8,1407.7,1.29395408]
[1673572085767,0.09620928,1407.9,1407.7,8.39773408]
[1673572087486,0.09620928,1407.9,1407.7,15.50151408]
[1673572090072,0.09620928,1407.9,1407.7,16.56561537]
[1673572090280,0.09620928,1407.9,1407.8,1.65656154]
[1673572090470,0.09620928,1407.9,1407.7,23.73539537]
[1673572090708,0.09620928,1407.9,1407.7,23.66939537]
[1673572092539,0.09620928,1407.9,1407.7,24.01068247]
[1673572092831,0.09620928,1407.9,1407.7,23.66939537]
[1673572094057,0.09620928,1407.9,1407.7,25.93064282]
[1673572094261,0.09620928,1407.9,1407.8,2.59306428]
[1673572094631,0.09620928,1407.9,1407.8,14.20656]
[1673572095237,0.09620928,1407.9,1407.8,23.56604198]
[1673572095619,0.09620928,1407.9,1407.8,9.35948198]
[1673572095899,0.09620928,1407.9,1407.8,16.46276198]
[1673572096468,0.09399284,1407.9,1407.8,23.56604198]
[1673572096674,0.09399284,1407.9,1407.8,31.13308603]
[1673572096923,0.09399284,1407.9,1407.8,30.41027184]
[1673572097156,0.09399284,1407.9,1407.8,31.47212476]
[1673572097307,0.09399284,1407.9,1407.8,30.40802347]
[1673572097530,0.09399284,1407.9,1407.8,31.47212476]
[1673572097739,0.09399284,1407.9,1407.8,33.97212476]
[1673572099197,0.09399284,1407.9,1407.8,31.47212476]
[1673572107145,0.09399284,1407.9,1407.8,33.06675793]
[1673572107523,0.09399284,1407.9,1407.8,31.47212476]
[1673572109035,0.09399284,1407.9,1407.8,33.06675793]
[1673572109421,0.09399284,1407.9,1407.8,31.47212476]
[1673572112139,0.09399284,1407.9,1407.8,33.06675793]
[1673572113027,0.09399284,1407.9,1407.8,33.06575656]
[1673572114078,0.09399284,1407.9,1407.8,32.00265664]
[1673572114238,0.09399284,1407.9,1407.8,33.06570733]
[1673572116885,0.09399284,1407.9,1407.8,17.26451416]
[1673572117100,0.09399284,1407.9,1407.8,13.4202843]
[1673572117326,0.09399284,1407.9,1407.8,12.35723361]
[1673572117546,0.09399284,1407.9,1407.8,13.4202843]
[1673572117870,0.09399284,1407.9,1407.8,12.35723361]
[1673572119609,0.09399284,1407.9,1407.8,13.4202843]
[1673572120368,0.09399284,1407.9,1407.8,20.5235643]
[1673572120799,0.09399284,1407.9,1407.8,13.4202843]
[1673572121012,0.09399284,1407.9,1407.8,3.0]
[1673572121419,0.82086102,1407.9,1407.8,3.0]
[1673572126316,0.09133174,1407.9,1407.8,3.0]
[1673572127430,0.09133174,1407.9,1407.8,2.99735344]
[1673572136192,0.09133174,1407.9,1407.7,16.93067386]
[1673572136398,0.09133174,1407.9,1407.7,16.86467386]
[1673572137343,0.09133174,1407.9,1407.7,15.27004069]
[1673572138460,0.09133174,1407.9,1407.7,16.86467386]
[1673572140383,0.09133174,1407.9,1407.8,1.06305069]
[1673572144634,0.09133174,1407.9,1407.8,8.69791317]
[1673572144935,0.09133174,1407.9,1407.8,27.93667144]
[1673572145298,0.09133174,1407.9,1407.8,30.77795854]
[1673572145719,0.09133174,1407.9,1407.8,28.27795854]
[1673572145979,0.09133174,1407.9,1407.8,27.93667144]
[1673572146407,0.09133174,1407.9,1407.8,28.27795854]
[1673572146981,0.09133174,1407.9,1407.8,30.77795854]
[1673572148061,0.09133174,1407.9,1407.8,28.27795854]
[1673572148681,0.09133174,1407.9,1407.8,31.27795854]
[1673572150489,0.09133174,1407.9,1407.8,26.67467854]
[1673572150700,0.09133174,1407.9,1407.8,35.90644965]
[1673572151019,0.09133174,1407.9,1407.8,33.77795854]
[1673572151390,0.08921094,1407.9,1407.8,33.77795854]
[1673572151814,0.08921094,1407.9,1407.8,35.90644965]
[1673572152041,0.08921094,1407.9,1407.8,36.97242509]
[1673572152284,0.08921094,1407.9,1407.8,34.31381648]
[1673572152452,0.08921094,1407.9,1407.8,36.97242509]
[1673572152813,0.08921094,1407.9,1407.8,31.81381648]
[1673572152983,0.08921094,1407.9,1407.8,31.81181648]
[1673572153335,0.08921094,1407.9,1407.8,34.47242509]
[1673572153982,0.07050935,1407.9,1407.8,32.34393398]
[1673572154287,0.07050935,1407.9,1407.8,36.97098831]
[1673572154659,0.07050935,1407.9,1407.8,34.47098831]
[1673572154870,0.07050935,1407.9,1407.8,31.8103797]
[1673572155338,0.07050935,1407.9,1407.8,34.47098831]
[1673572155761,0.07050935,1407.9,1407.8,31.8103797]
[1673572157995,0.07050935,1407.9,1407.8,33.40507154]
[1673572158465,0.07050935,1407.9,1407.8,31.8103797]
[1673572158930,0.07050935,1407.9,1407.8,33.40482284]
[1673572159364,0.07050935,1407.9,1407.8,31.8103797]
[1673572161001,0.07050935,1407.9,1407.8,33.4046101]
[1673572161666,0.07050935,1407.9,1407.8,31.27755577]
[1673572164245,0.07050935,1407.9,1407.8,24.17427577]
[1673572164459,0.07050935,1407.9,1407.8,23.64295334]
[1673572164944,0.07050935,1407.9,1407.8,30.74623334]
[1673572166144,0.07050935,1407.9,1407.8,32.34046374]
[1673572166877,0.07050935,1407.9,1407.8,30.74623334]
[1673572167753,0.07050935,1407.9,1407.8,23.64295334]
[1673572168293,0.07050935,1407.9,1407.8,30.74623334]
[1673572168485,0.07050935,1407.9,1407.8,32.34046374]
[1673572168697,0.07050935,1407.9,1407.8,32.34062208]
[1673572169813,0.07050935,1407.9,1407.8,31.27755577]
[1673572170808,0.07050935,1407.9,1407.8,33.4046101]
[1673572171864,0.07050935,1407.9,1407.8,32.78255577]
[1673572172070,0.05574298,1407.9,1407.8,38.47598831]
[1673572173032,0.05574298,1407.9,1407.8,39.99298831]
[1673572173336,0.05574298,1407.9,1407.8,37.86593398]
[1673572173713,0.05574298,1407.9,1407.8,39.99260291]
[1673572174127,0.05574298,1407.9,1407.8,37.86593398]
[1673572175613,0.05574298,1407.9,1407.8,35.36593398]
[1673572175825,0.05574298,1407.9,1407.8,37.49259174]
[1673572176471,0.05574298,1407.9,1407.8,37.86593398]
[1673572178228,0.10248391,1408.1,1407.9,2.5]
[1673572178445,0.10248391,1408.1,1408.0,8.18363003]
[1673572178662,0.10248391,1408.1,1408.0,36.86626835]
[1673572179001,0.10248391,1408.1,1408.0,44.83337034]
[1673572179525,0.10248391,1408.1,1408.0,44.8337935]
[1673572179936,0.10248391,1408.1,1408.0,44.83380188]
[1673572180285,0.10248391,1408.1,1408.0,47.00500167]
[1673572180592,0.10248391,1408.1,1408.0,43.22709113]
[1673572180911,0.10248391,1408.1,1408.0,42.70448956]
[1673572181936,0.10248391,1408.1,1408.0,40.0489931]
[1673572182123,0.10248391,1408.1,1408.0,39.77543478]
[1673572182326,0.10248391,1408.1,1408.0,42.43092504]
[1673572183502,0.10248391,1408.1,1408.0,39.77543478]
[1673572183712,0.10248391,1408.1,1408.0,42.42990712]
[1673572184123,0.10248391,1408.1,1408.0,39.77543478]
[1673572184583,0.10248391,1408.1,1408.0,46.7303771]
[1673572184836,0.10248391,1408.1,1408.0,43.55227907]
[1673572184955,0.10248391,1408.1,1408.0,39.77543478]
[1673572185162,0.10248391,1408.1,1408.0,43.55230584]
[1673572185417,0.10248391,1408.1,1408.0,39.77543478]
[1673572185631,0.10248391,1408.1,1408.0,43.55230593]
[1673572185850,0.10248391,1408.1,1408.0,43.55401292]
[1673572186238,0.10248391,1408.1,1408.0,43.82757124]
[1673572186853,0.10248391,1408.1,1408.0,46.47991671]
[1673572187079,0.04150377,1408.1,1408.0,42.70133857]
[1673572187314,0.04150377,1408.1,1408.0,46.48044886]
[1673572187631,0.04150377,1408.1,1408.0,43.82810339]
[1673572187853,0.04150377,1408.1,1408.0,42.70131549]
[1673572188461,0.01940483,1408.1,1408.0,42.70131549]
[1673572190124,0.01940483,1408.1,1408.0,40.0489931]
[1673572190561,0.01940483,1408.1,1408.0,42.70077226]
[1673572198039,0.01940483,1408.1,1408.0,42.42721394]
[1673572198211,0.01940483,1408.1,1408.0,42.69310029]
[1673572198437,0.00907763,1408.1,1408.0,42.69310029]
[1673572198868,0.0025489,1408.1,1408.0,42.69112671]
[1673572199464,0.0025489,1408.1,1408.0,40.04132113]
[1673572200139,0.0025489,1408.1,1408.0,43.82006581]
[1673572200885,0.10070977,1408.3,1408.1,2.5]
[1673572201094,0.10070977,1408.3,1408.2,37.75379087]
[1673572201252,0.10070977,1408.3,1408.2,41.36096432]
[1673572201466,0.10070977,1408.3,1408.2,43.48068977]
[1673572202031,0.04071677,1408.3,1408.2,43.48068977]
[1673572202253,0.04071677,1408.3,1408.2,48.52263874]
[1673572202414,0.04071677,1408.3,1408.2,46.93282448]
[1673572202979,0.04071677,1408.3,1408.2,50.98167382]
[1673572203162,0.04071677,1408.3,1408.2,47.19871083]
[1673572203507,0.04071677,1408.3,1408.2,48.7884453]
[1673572204751,0.04071677,1408.3,1408.2,46.2884453]
[1673572204927,0.04071677,1408.3,1408.2,44.16871985]
[1673572205410,0.04071677,1408.3,1408.2,42.19582041]
[1673572206733,0.04071677,1408.3,1408.2,41.13571985]
[1673572206924,0.04071677,1408.3,1408.2,43.2554453]
[1673572207396,0.04071677,1408.3,1408.2,41.13571985]
[1673572208728,0.04071677,1408.3,1408.2,41.93039261]
[1673572208939,0.04071677,1408.3,1408.2,40.8698335]
[1673572209870,0.04071677,1408.3,1408.2,41.39982448]
[1673572210744,0.04071677,1408.3,1408.2,44.0494813]
[1673572210936,0.10070977,1408.4,1408.2,41.39982448]
[1673572211148,0.10070977,1408.4,1408.3,8.20589421]
[1673572211392,0.10070977,1408.4,1408.3,29.50814421]
[1673572211601,0.10070977,1408.4,1408.3,30.97059094]
[1673572212757,0.10070977,1408.4,1408.3,28.44662487]
[1673572214068,0.10070977,1408.4,1408.3,28.44862487]
[1673572214293,0.10070977,1408.4,1408.3,29.5086383]
[1673572214534,0.10070977,1408.4,1408.3,28.44662487]
[1673572214747,0.10070977,1408.4,1408.3,13.37365849]
[1673572215013,1.61770977,1408.4,1408.3,1.06409973]
[1673572215226,2.50018074,1408.4,1408.3,1.06209973]
[1673572215959,1.61770977,1408.4,1408.3,1.06209973]
[1673572216169,1.61770977,1408.4,1408.3,3.2678666]
[1673572216490,0.10070977,1408.4,1408.3,22.06164561]
[1673572216655,0.10720989,1408.5,1408.3,22.06164561]
[1673572216867,0.10720989,1408.5,1408.4,1.06209973]
[1673572217560,0.10720989,1408.5,1408.4,8.16234973]
[1673572221342,0.10720989,1408.5,1408.4,11.95031287]
[1673572222219,0.10720989,1408.5,1408.4,10.35803386]
[1673572224320,0.10332894,1408.5,1408.4,10.35803386]
[1673572225029,0.10332894,1408.5,1408.4,11.95031287]
[1673572226178,0.10332894,1408.5,1408.4,10.35803386]
[1673572227017,0.10332894,1408.5,1408.4,20.59203769]
[1673572227230,0.10332894,1408.5,1408.4,22.1843167]
[1673572227430,0.10332894,1408.5,1408.4,29.2845667]
[1673572227647,0.10332894,1408.5,1408.4,29.6258538]
[1673572227986,0.10332894,1408.5,1408.4,28.22246697]
[1673572228194,0.10332894,1408.5,1408.4,28.56375407]
[1673572229642,0.05332894,1408.5,1408.4,28.56375407]
[1673572229888,0.05332894,1408.5,1408.4,31.59120051]
[1673572230063,0.05332894,1408.5,1408.4,30.68726846]
[1673572231312,0.05332894,1408.5,1408.4,29.09120051]
[1673572231522,0.05332894,1408.5,1408.4,32.09120051]
[1673572231775,0.05332894,1408.5,1408.4,33.68721393]
[1673572232803,0.65104308,1408.5,1408.4,33.68721393]
[1673572233874,0.65104308,1408.5,1408.4,32.09120051]
[1673572234931,0.65104308,1408.5,1408.4,33.34579877]
[1673572235102,0.65104308,1408.5,1408.4,33.68708587]
[1673572237884,0.65104308,1408.5,1408.4,31.56736042]
[1673572241469,0.65104308,1408.5,1408.4,33.68708587]
[1673572242043,0.65104308,1408.5,1408.4,31.56736042]
[1673572242853,0.65104308,1408.5,1408.4,34.13813188]
[1673572243050,0.44396699,1408.5,1408.4,33.79684478]
[1673572243202,0.44396699,1408.5,1408.4,36.63813188]
[1673572243573,0.44396699,1408.5,1408.4,33.98847506]
[1673572244504,0.44396699,1408.5,1408.4,36.64728735]
[1673572245100,0.44396699,1408.5,1408.4,33.98847506]
[1673572246348,0.44396699,1408.5,1408.4,36.64820545]
[1673572246554,0.44396699,1408.5,1408.4,36.64620545]
[1673572246823,0.44396699,1408.5,1408.4,46.39206189]
[1673572247023,0.44396699,1408.5,1408.4,49.56929397]
[1673572247975,0.44396699,1408.5,1408.4,49.5757563]
[1673572248151,0.44396699,1408.5,1408.4,50.107529]
[1673572248367,0.44396699,1408.5,1408.4,46.66354462]
[1673572248693,0.11173993,1408.6,1408.4,46.65354462]
[1673572248881,0.11173993,1408.6,1408.5,37.79528477]
[1673572249093,0.11173993,1408.6,1408.5,40.29528477]
[1673572249320,0.11173993,1408.6,1408.5,38.17006259]
[1673572249531,0.11173993,1408.6,1408.5,37.63882823]
[1673572250416,0.11173993,1408.6,1408.5,40.29535595]
[1673572250553,0.11173993,1408.6,1408.5,37.63882823]
[1673572252542,0.11173993,1408.6,1408.5,39.23203481]
[1673572252759,0.11173993,1408.6,1408.5,37.90426706]
[1673572253396,0.11173993,1408.6,1408.5,40.56079478]
[1673572253610,0.11173993,1408.6,1408.5,37.90426706]
[1673572253818,0.11173993,1408.6,1408.5,40.29535595]
[1673572254030,0.11173993,1408.6,1408.5,41.94695804]
[1673572254383,0.11173993,1408.6,1408.5,42.21239687]
[1673572254597,0.11671723,1408.7,1408.5,42.21239687]
[1673572254751,0.11671723,1408.7,1408.6,33.19512096]
[1673572254961,0.11671723,1408.7,1408.6,36.19512096]
[1673572255219,0.11671723,1408.7,1408.6,33.69511925]
[1673572255389,0.11671723,1408.7,1408.6,32.10255775]
[1673572259211,0.11671723,1408.7,1408.6,19.72032983]
[1673572259427,0.11671723,1408.7,1408.6,19.37904273]
[1673572261848,0.11671723,1408.7,1408.6,27.54003096]
[1673572262845,0.66794048,1408.7,1408.6,27.54003096]
[1673572263602,0.66794048,1408.7,1408.6,29.13259246]
[1673572263797,0.66794048,1408.7,1408.6,33.60015905]
[1673572268729,0.66794048,1408.7,1408.6,33.60215905]
[1673572269087,0.66794048,1408.7,1408.6,33.60015905]
[1673572271582,0.66794048,1408.7,1408.6,32.00759755]
[1673572273806,0.66794048,1408.7,1408.6,33.60015905]
[1673572274411,0.66794048,1408.7,1408.6,32.00759755]
[1673572274618,0.66794048,1408.7,1408.6,27.88131806]
[1673572274978,0.66794048,1408.7,1408.6,29.13259246]
[1673572275801,0.66794048,1408.7,1408.6,27.54003096]
[1673572276033,0.6658291,1408.7,1408.6,27.54003096]
[1673572276247,0.6658291,1408.7,1408.6,27.88131806]
[1673572276571,0.6658291,1408.7,1408.6,27.54003096]
[1673572280442,0.6658291,1408.7,1408.6,28.07084423]
[1673572280605,0.6658291,1408.7,1408.6,29.13424382]
[1673572281446,0.6658291,1408.7,1408.6,27.54168232]
[1673572282407,0.6658291,1408.7,1408.6,29.13424382]
[1673572284584,0.6658291,1408.7,1408.6,28.07084423]
[1673572284739,0.6658291,1408.7,1408.6,29.13478495]
[1673572285618,3.83155501,1408.7,1408.6,5.65650222]
[1673572285828,3.83155501,1408.7,1408.5,1.12994072]
[1673572285829,10.93029501,1408.7,1408.5,1.12994072]
[1673572286055,3.02,1408.6,1408.5,1.06394072]
[1673572286266,4.3715295,1408.6,1408.4,2.65650222]
[1673572286422,2.8585295,1408.6,1408.4,4.84714553]
[1673572286794,1.517,1408.5,1408.4,11.94736553]
[1673572287292,1.517,1408.5,1408.4,13.35480403]
[1673572287488,1.517,1408.5,1408.4,11.16416072]
[1673572287699,1.517,1408.5,1408.4,4.06394072]
[1673572288177,2.26857317,1408.5,1408.4,4.06394072]
[1673572288313,2.26857317,1408.5,1408.4,3.0]
[1673572288523,2.26857317,1408.5,1408.4,4.06394072]
[1673572289629,2.26857317,1408.5,1408.4,3.0]
[1673572291982,0.75157317,1408.5,1408.4,3.0]
[1673572292889,3.77557317,1408.5,1408.3,0.066]
[1673572293049,11.48740732,1408.4,1408.1,9.82384222]
[1673572293256,1.509,1408.2,1408.1,9.75784222]
[1673572293519,1.9099,1408.2,1408.1,9.75784222]
[1673572293736,1.509,1408.2,1408.1,9.75784222]
[1673572293896,1.509,1408.2,1408.1,8.16528072]
[1673572294102,1.509,1408.2,1408.1,11.16528072]
[1673572295378,1.509,1408.2,1408.1,10.10134]
[1673572295930,1.509,1408.2,1408.1,11.16528072]
[1673572296298,1.509,1408.2,1408.1,10.10134]
[1673572296513,1.509,1408.2,1408.1,11.16528072]
[1673572296724,1.509,1408.2,1408.1,10.10134]
[1673572297930,1.509,1408.2,1408.1,3.0]
[1673572298856,1.509,1408.2,1408.1,10.10176]
[1673572299062,3.46699755,1408.2,1408.1,10.10176]
[1673572300326,1.50658755,1408.2,1408.1,10.10176]
[1673572301105,18.0951,1408.3,1408.1,10.10176]
[1673572301245,18.0951,1408.3,1408.1,3.0]
[1673572301666,4.017,1408.2,1408.0,0.066]
[1673572301976,0.4017,1408.1,1408.0,3.0]
[1673572302191,4.116,1408.2,1408.0,3.0]
[1673572302404,4.017,1408.2,1407.9,10.1685]
[1673572302636,11.11836,1408.2,1407.9,5.23602364]
[1673572302848,16.552866,1408.2,1407.9,12.33867364]
[1673572303260,16.552866,1408.2,1407.9,12.67996074]
[1673572303470,1.517,1408.1,1407.9,10.10268]
[1673572304198,1.517,1408.1,1407.9,3.0]
[1673572304428,3.91133224,1408.1,1407.9,3.0]
[1673572305388,3.91133224,1408.1,1407.9,10.1027]
[1673572305809,3.91133224,1408.1,1407.9,3.0]
[1673572310131,11.01309224,1408.1,1407.9,3.0]
[1673572310328,11.11209224,1408.1,1407.9,3.0]
[1673572314085,11.11209224,1408.1,1407.9,2.99740152]
[1673572314769,2.5,1408.0,1407.9,2.99740152]
[1673572314946,11.11209224,1408.1,1407.9,2.99740152]
[1673572315156,13.61209224,1408.1,1407.9,2.99740152]
[1673572315683,11.11209224,1408.1,1407.9,2.99740152]
[1673572316611,13.61209224,1408.1,1407.9,2.99740152]
[1673572318405,11.11209224,1408.1,1407.9,2.99740152]
[1673572321075,4.01033224,1408.1,1407.9,10.10010152]
[1673572321247,3.91133224,1408.1,1407.9,10.10010152]
[1673572321602,3.91133224,1408.1,1407.9,2.99740152]
[1673572322291,3.91133224,1408.1,1407.9,4.06134224]
[1673572322648,6.951506,1408.2,1407.9,25.36961224]
[1673572322968,6.951506,1408.2,1407.9,18.26684224]
[1673572323661,6.951506,1408.2,1408.0,1.06394072]
[1673572323871,6.951506,1408.2,1407.9,19.92540374]
[1673572324089,6.951506,1408.2,1407.9,19.85940374]
[1673572324489,1.616,1408.2,1407.9,29.19819738]
[1673572324700,29.5522,1408.3,1408.0,15.26789072]
[1673572325381,29.5522,1408.3,1408.0,16.86045222]
[1673572326639,29.5522,1408.3,1408.0,26.18865883]
[1673572326809,29.5522,1408.3,1408.1,7.10153]
[1673572327013,34.078203,1408.3,1408.1,7.10153]
[1673572327486,34.078203,1408.3,1408.1,8.16547072]
[1673572328289,32.561203,1408.3,1408.1,8.16547072]
[1673572328521,34.078203,1408.3,1408.1,7.10153]
[1673572328756,3.4078203,1408.2,1408.1,7.10153]
[1673572329057,2.5,1408.2,1408.1,7.10153]
[1673572329435,29.5522,1408.3,1408.1,7.10153]
[1673572330214,28.0352,1408.3,1408.1,7.10153]
[1673572331774,28.0352,1408.3,1408.1,8.16547072]
[1673572332421,28.0352,1408.3,1408.1,7.10153]
[1673572332601,28.0352,1408.3,1408.1,8.16547072]
[1673572332798,32.51544731,1408.3,1408.1,8.16547072]
[1673572334320,32.51544731,1408.3,1408.1,1.06394072]
[1673572334856,2.5,1408.2,1408.1,1.06394072]
[1673572336392,46.71423388,1408.3,1408.1,1.06394072]
[1673572337155,2.5,1408.2,1408.1,1.06394072]
[1673572337914,6.57632142,1408.2,1408.1,1.06394072]
[1673572338083,13.77658142,1408.2,1408.0,2.65650222]
[1673572338614,20.87784142,1408.2,1408.0,1.06394072]
[1673572338816,20.87784142,1408.2,1408.0,2.65650222]
[1673572340591,20.87784142,1408.2,1408.0,1.06394072]
[1673572341267,2.08778414,1408.1,1408.0,1.06394072]
[1673572341588,20.87784142,1408.2,1408.0,1.06394072]
[1673572342331,20.87784142,1408.2,1408.0,2.65650222]
[1673572343639,20.87784142,1408.2,1408.0,2.65292316]
[1673572344480,13.77658142,1408.2,1408.0,2.65292316]
[1673572345153,11.27658142,1408.2,1408.0,2.65292316]
[1673572345342,11.27658142,1408.2,1408.0,1.5925615]
[1673572345959,13.77658142,1408.2,1408.0,1.5925615]
[1673572346363,4.17532142,1408.2,1408.0,15.7967115]
[1673572346581,4.07632142,1408.2,1408.0,1.5925615]
[1673572347045,35.13310657,1408.3,1408.0,1.5925615]
[1673572347261,42.23412657,1408.3,1408.0,8.6947515]
[1673572347477,35.13310657,1408.3,1408.0,8.6947515]
[1673572351975,42.23407657,1408.3,1408.0,8.6947515]
[1673572352338,4.22340766,1408.2,1408.0,8.6947515]
[1673572352488,49.33511657,1408.3,1408.0,8.6947515]
[1673572352962,2.5,1408.2,1408.0,8.6947515]
[1673572353698,2.5,1408.2,1408.1,1.06423117]
[1673572353905,49.33511657,1408.3,1408.1,1.06423117]
[1673572354069,42.23407657,1408.3,1408.1,1.06423117]
[1673572354281,6.72340766,1408.2,1408.1,1.06423117]
[1673572354647,4.32240766,1408.2,1408.1,1.06423117]
[1673572354960,4.22340766,1408.2,1408.1,1.06423117]
[1673572355328,11.32466766,1408.2,1408.1,1.06423117]
[1673572355538,11.42366766,1408.2,1408.1,1.06423117]
[1673572356987,21.02492766,1408.2,1408.1,1.06423117]
[1673572357287,21.02492766,1408.2,1408.0,2.65679267]
[1673572357449,4.60249277,1408.1,1408.0,1.5925615]
[1673572357658,2.10249277,1408.1,1408.0,1.5925615]
[1673572357911,28.12652766,1408.2,1408.0,1.5925615]
[1673572358123,28.12652766,1408.2,1408.1,1.06442024]
[1673572359056,21.02492766,1408.2,1408.1,1.06442024]
[1673572359287,18.52492766,1408.2,1408.1,1.06442024]
[1673572361396,11.42366766,1408.2,1408.1,1.06442024]
[1673572361584,0.099,1408.2,1408.1,1.5925615]
[1673572361790,35.13310657,1408.3,1408.1,1.5925615]
[1673572362130,35.13310657,1408.3,1408.2,1.06446573]
[1673572362809,25.19300657,1408.3,1408.2,1.06446573]
[1673572363434,18.09205657,1408.3,1408.2,1.06446573]
[1673572364962,18.09205657,1408.3,1408.1,9.82455723]
[1673572365273,20.71623553,1408.3,1408.1,9.75855723]
[1673572365484,18.09205657,1408.3,1408.2,1.06446573]
[1673572366911,18.08949677,1408.3,1408.2,1.06446573]
[1673572369553,18.08949677,1408.3,1408.1,9.82455723]
[1673572369762,18.08949677,1408.3,1408.1,9.75855723]
[1673572370514,18.08949677,1408.3,1408.2,1.06446573]
[1673572371136,18.08949677,1408.3,1408.2,8.16572573]
[1673572371587,25.19024677,1408.3,1408.1,2.72302723]
[1673572371905,36.58505675,1408.3,1408.1,2.65702723]
[1673572372212,2.5,1408.2,1408.1,1.06446573]
[1673572373162,9.60126,1408.2,1408.1,1.06446573]
[1673572373334,9.70026,1408.2,1408.1,1.06446573]
[1673572373548,13.96276875,1408.2,1408.1,1.06446573]
[1673572374469,13.96276875,1408.2,1408.0,2.65702723]
[1673572375324,2.78843307,1408.1,1407.9,0.4072871]
[1673572375565,4.61235954,1408.1,1407.8,0.07739277]
[1673572375742,24.08565331,1408.0,1407.8,0.07739277]
[1673572375958,1.526,1407.9,1407.8,0.07739277]
[1673572376201,15.73154,1407.9,1407.8,0.07739277]
[1673572376374,22.93331,1407.9,1407.8,0.07739277]
[1673572376588,29.44852667,1407.9,1407.8,0.07739277]
[1673572376804,30.96552667,1407.9,1407.8,0.07739277]
[1673572377025,32.47252667,1407.9,1407.8,0.07739277]
[1673572379134,36.07885939,1407.9,1407.8,0.07739277]
[1673572379461,32.47252667,1407.9,1407.8,0.07739277]
[1673572383553,29.44852667,1407.9,1407.8,0.07739277]
[1673572383781,30.65252667,1407.9,1407.8,0.07739277]
[1673572386116,31.06598619,1407.9,1407.8,0.07739277]
[1673572387358,31.06598619,1407.9,1407.8,0.07482666]
[1673572387726,34.67231891,1407.9,1407.8,0.07482666]
[1673572390494,32.17231891,1407.9,1407.8,0.07482666]
[1673572391132,27.36198619,1407.9,1407.8,0.07482666]
[1673572391439,18.73321619,1407.9,1407.8,0.07482666]
[1673572391967,25.83598619,1407.9,1407.8,0.07482666]
[1673572392548,26.06598619,1407.9,1407.8,0.07482666]
[1673572394169,18.96321619,1407.9,1407.8,0.07482666]
[1673572394995,0.51245952,1407.9,1407.8,1.38382666]
[1673572395320,7.51622952,1407.9,1407.8,0.07482666]
[1673572395496,7.61522952,1407.9,1407.8,0.07482666]
[1673572395702,0.51245952,1407.9,1407.8,0.07482666]
[1673572395945,0.41345952,1407.9,1407.8,0.07482666]
[1673572401625,1.70945952,1407.9,1407.8,0.07482666]
[1673572401842,4.28209847,1407.9,1407.8,0.07482666]
[1673572402061,1.70945952,1407.9,1407.8,0.07482666]
[1673572402583,8.81222952,1407.9,1407.8,0.07482666]
[1673572402752,8.91122952,1407.9,1407.8,0.07482666]
[1673572403294,16.01399952,1407.9,1407.8,0.07482666]
[1673572404372,23.34676952,1407.9,1407.8,0.07482666]
[1673572404528,27.36299347,1407.9,1407.8,0.07482666]
[1673572405208,29.86299347,1407.9,1407.8,0.07482666]
[1673572406264,27.36299347,1407.9,1407.8,0.07482666]
[1673572406425,40.30389347,1407.9,1407.8,0.07482666]
[1673572409576,40.30100938,1407.9,1407.8,0.07482666]
[1673572410205,36.28478543,1407.9,1407.8,0.07482666]
[1673572411106,36.28478543,1407.9,1407.8,1.38382666]
[1673572411107,0.50957543,1407.9,1407.8,1.38382666]
[1673572411257,0.41057543,1407.9,1407.8,1.38382666]
[1673572411674,0.41057543,1407.9,1407.8,0.07482666]
[1673572412253,0.41057543,1407.9,1407.8,1.13929239]
[1673572412471,0.41057543,1407.9,1407.8,2.83321678]
[1673572413302,1.70657543,1407.9,1407.8,0.07482666]
[1673572416416,8.80934543,1407.9,1407.8,0.07482666]
[1673572416727,8.90834543,1407.9,1407.8,0.07482666]
[1673572416891,16.24111543,1407.9,1407.8,0.07482666]
[1673572417104,28.00441097,1407.9,1407.8,0.07482666]
[1673572417303,30.50441097,1407.9,1407.8,0.07482666]
[1673572424845,30.50441097,1407.9,1407.8,0.02482666]
[1673572430041,31.70341097,1407.9,1407.8,0.02482666]
[1673572430253,32.75284404,1407.9,1407.8,0.02482666]
[1673572430880,31.70341097,1407.9,1407.8,0.02482666]
[1673572431208,38.12154058,1407.9,1407.8,0.02482666]
[1673572431762,36.35917676,1407.9,1407.8,0.02482666]
[1673572432348,35.30974369,1407.9,1407.8,0.02482666]
[1673572432562,36.35917676,1407.9,1407.8,0.02482666]
[1673572432911,35.30974369,1407.9,1407.8,0.02482666]
[1673572436286,36.35917676,1407.9,1407.8,0.02482666]
[1673572436499,35.30974369,1407.9,1407.8,0.02482666]
[1673572436661,36.35917676,1407.9,1407.8,0.02482666]
[1673572437514,38.12156214,1407.9,1407.8,0.02482666]
[1673572438698,36.35917676,1407.9,1407.8,0.02482666]
[1673572439121,40.3131283,1407.9,1407.8,0.02482666]
[1673572439858,39.63546908,1407.9,1407.8,0.02482666]
[1673572440019,49.05404626,1407.9,1407.8,0.02482666]
[1673572440229,50.48327241,1407.9,1407.8,0.02482666]
[1673572440757,52.06265378,1407.9,1407.8,0.02482666]
[1673572441285,47.86806896,1407.9,1407.8,0.02482666]
[1673572442068,59.49365378,1407.9,1407.8,0.00082666]
[1673572442223,60.54446955,1407.9,1407.8,0.00082666]
[1673572442439,57.91427241,1407.9,1407.8,0.00082666]
[1673572443387,55.50627241,1407.9,1407.8,0.00082666]
[1673572443596,57.92427241,1407.9,1407.8,0.00082666]
[1673572443957,59.50315596,1407.9,1407.8,0.00082666]
[1673572444488,59.50315288,1407.9,1407.8,0.00082666]
[1673572444893,57.92427241,1407.9,1407.8,0.00082666]
[1673572445099,59.50314904,1407.9,1407.8,0.00082666]
[1673572445488,59.5001604,1407.9,1407.8,0.00082666]
[1673572445928,55.30557558,1407.9,1407.8,0.00082666]
[1673572446156,53.21125181,1407.9,1407.8,0.00082666]
[1673572446374,57.40583663,1407.9,1407.8,0.00082666]
[1673572447489,58.02583663,1407.9,1407.8,0.00082666]
[1673572447947,53.83125181,1407.9,1407.8,0.00082666]
[1673572448263,58.02583663,1407.9,1407.8,0.00082666]
[1673572449013,59.54483663,1407.9,1407.8,0.00082666]
[1673572449171,60.06028377,1407.9,1407.8,0.00082666]
[1673572449838,1.29717334,1407.7,1407.6,0.07948364]
[1673572450087,37.70544339,1407.7,1407.6,0.07948364]
[1673572450271,48.45711198,1407.7,1407.6,0.07948364]
[1673572450425,60.78141089,1407.7,1407.6,0.07948364]
[1673572450639,63.78141089,1407.7,1407.6,8.364e-05]
[1673572450959,2.5,1407.6,1407.5,0.08875542]
[1673572451283,52.03938199,1407.6,1407.5,0.08875542]
[1673572451506,52.13838199,1407.6,1407.5,0.08875542]
[1673572451698,55.15538199,1407.6,1407.5,0.08875542]
[1673572452148,50.96079717,1407.6,1407.5,0.08875542]
[1673572452359,55.15538199,1407.6,1407.5,0.08875542]
[1673572453011,65.04268199,1407.6,1407.5,0.08875542]
[1673572453176,62.02568199,1407.6,1407.5,0.08875542]
[1673572453382,65.04968199,1407.6,1407.5,0.08875542]